[Event "SWE-ch Masters 2019"]
[Site "Eskilstuna"]
[Date "2019.07.06"]
[Round "1.1"]
[White "Crevatin, Leo"]
[Black "Zadruzny, Nicolaj"]
[Result "1/2-1/2"]
[ECO "D37"]
[WhiteElo "2146"]
[BlackElo "2280"]
[Annotator "NA"]
[PlyCount "140"]
[EventDate "2019.07.06"]
[EventType "tourn"]
[EventCountry "SWE"]
[SourceTitle "playchess.com"]
[Source "ChessBase"]
[SourceQuality "1"]
[TimeControl "40/5400+30:1800+30"]

1. d4 {[%emt 0:00:00]} Nf6 {[%emt 0:00:00]} 2. c4 {[%emt 0:00:00]} e6 {[%emt 0:00:00]} 3. Nc3 {[%emt 0:00:00]} d5 {[%emt 0:00:00]} 4. Nf3 {[%emt 0:00:47]} Be7 {[%emt 0:00:00]} 5. Bf4 {[%emt 0:00:53]} O-O {[%emt 0:00:19]} 6. e3 {[%emt 0:00:20]} Nbd7 {[%emt 0:00:11]} 7. Be2 {[%emt 0:02:39]} c5 {[%emt 0:00:10]} 8. dxc5 {[%emt 0:01:30]} Nxc5 {[%emt 0:11:20]} 9. O-O {[%emt 0:01:38]} dxc4 {[%emt 0:07:25]} 10. Bxc4 {[%emt 0:02:08]} a6 {[%emt 0:04:12]} 11. Ne5 {[%emt 0:20:15]} Qb6 {[%emt 0:01:43]} 12. Qe2 {[%emt 0:03:18]} Nfd7 {[%emt 0:17:47]} 13. Nf3 {[%emt 0:05:41]} Nf6 {[%emt 0:10:36]} 14. Ne5 {[%emt 0:00:52]} Ncd7 {[%emt 0:05:19]} 15. Rfd1 {[%emt 0:07:50]} Qa5 {[%emt 0:04:54]} 16. Nxd7 {[%emt 0:14:37]} Bxd7 {[%emt 0:00:08]} 17. a3 {[%emt 0:08:47]} Bc6 {[%emt 0:04:23]} 18. h3 {[%emt 0:04:41]} Rac8 {[%emt 0:04:40]} 19. e4 {[%emt 0:03:57]} Rfd8 {[%emt 0:11:03]} 20. e5 {[%emt 0:05:36]} Nd7 {[%emt 0:01:14]} 21. Rac1 {[%emt 0:02:22]} b5 {[%emt 0:05:56]} 22. Bd3 {[%emt 0:01:13]} b4 {[%emt 0:08:09]} 23. Bxa6 {[%emt 0:05:17]} Rb8 {[%emt 0:01:25]} 24. axb4 {[%emt 0:02:47]} Qxb4 {[%emt 0:00:04]} 25. Be3 {[%emt 0:02:25]} Qxb2 {[%emt 0:00:53]} 26. Qxb2 {[%emt 0:00:32]} Rxb2 {[%emt 0:00:05]} 27. Bd4 {[%emt 0:00:44]} Rbb8 {[%emt 0:00:23]} 28. Ne2 {[%emt 0:00:47]} Ba4 {[%emt 0:00:31]} 29. Rf1 {[%emt 0:00:40]} g6 {[%emt 0:00:58]} 30. Rc7 {[%emt 0:01:21]} Rb4 {[%emt 0:00:36]} 31. Rfc1 {[%emt 0:00:36]} Bg5 {[%emt 0:00:31]} 32. Rc8 {[%emt 0:00:37]} Rxc8 {[%emt 0:00:31]} 33. Rxc8+ {[%emt 0:00:08]} Kg7 {[%emt 0:00:06]} 34. Rc4 {[%emt 0:00:40]} Rb1+ {[%emt 0:00:36]} 35. Kh2 {[%emt 0:00:03]} Bb5 {[%emt 0:00:19]} 36. Bxb5 {[%emt 0:00:03]} Rxb5 {[%emt 0:00:04]} 37. f4 {[%emt 0:00:24]} Bd8 {[%emt 0:00:29]} 38. Rc8 {[%emt 0:01:02]} Ba5 {[%emt 0:00:34]} 39. Rc4 {[%emt 0:01:16]} Nb6 {[%emt 0:01:23]} 40. Rc5 {[%emt 0:00:10]} Rxc5 {[%emt 0:00:30]} 41. Bxc5 {[%emt 0:30:02]} Nd5 {[%emt 0:00:51]} 42. Kg3 {[%emt 0:00:00]} Bd2 {[%emt 0:02:39]} 43. Kf3 {[%emt 0:00:00]} g5 {[%emt 0:01:00]} 44. fxg5 {[%emt 0:00:00]} Bxg5 {[%emt 0:00:16]} 45. Ke4 {[%emt 0:00:00]} Kg6 {[%emt 0:00:31]} 46. g3 {[%emt 0:00:00]} Bd2 {[%emt 0:01:27]} 47. Ba3 {[%emt 0:00:00]} Kg5 {[%emt 0:11:44]} 48. Bc1 {[%emt 0:00:00]} Bxc1 49. Nxc1 {[%emt 0:00:00]} Nc3+ {[%emt 0:05:56]} 50. Kf3 {[%emt 0:00:00]} Kf5 {[%emt 0:00:37]} 51. Nd3 {[%emt 0:00:00]} h5 {[%emt 0:06:00]} 52. Ke3 {[%emt 0:00:18]} Nd5+ {[%emt 0:00:57]} 53. Kd4 {[%emt 0:01:08]} Ne7 {[%emt 0:00:29]} 54. Ke3 {[%emt 0:05:29]} Nc6 {[%emt 0:01:07]} 55. Nf4 {[%emt 0:00:03]} h4 {[%emt 0:02:35]} 56. g4+ {[%emt 0:00:14]} Kxe5 {[%emt 0:00:16]} 57. Ng2 {[%emt 0:00:02]} Ne7 {[%emt 0:01:04]} 58. Nxh4 {[%emt 0:00:07]} Nd5+ {[%emt 0:00:08]} 59. Kf3 {[%emt 0:00:30]} Kd4 {[%emt 0:01:36]} 60. g5 {[%emt 0:01:04]} e5 {[%emt 0:00:42]} 61. Nf5+ {[%emt 0:00:01]} Kd3 {[%emt 0:00:27]} 62. h4 {[%emt 0:01:00]} e4+ {[%emt 0:00:21]} 63. Kg4 {[%emt 0:01:38]} e3 {[%emt 0:00:37]} 64. Ng3 {[%emt 0:00:54]} Nc3 {[%emt 0:00:40]} 65. Kf3 {[%emt 0:00:33]} e2 {[%emt 0:00:30]} 66. Kf2 {[%emt 0:00:24]} Kd2 {[%emt 0:00:25]} 67. Nxe2 {[%emt 0:00:02]} Nxe2 {[%emt 0:00:04]} 68. h5 {[%emt 0:00:08]} Nf4 {[%emt 0:00:29]} 69. g6 {[%emt 0:00:02]} fxg6 {[%emt 0:00:54]} 70. hxg6 {[%emt 0:00:07]} Nxg6 {[%emt 0:00:04]} 1/2-1/2

[Event "SWE-ch Masters 2019"]
[Site "Eskilstuna"]
[Date "2019.07.06"]
[Round "1.2"]
[White "Landgren, Andreas"]
[Black "Olsson, William"]
[Result "1/2-1/2"]
[ECO "D46"]
[WhiteElo "2246"]
[BlackElo "2113"]
[Annotator "NA"]
[PlyCount "74"]
[EventDate "2019.07.06"]
[EventType "tourn"]
[EventCountry "SWE"]
[SourceTitle "playchess.com"]
[Source "ChessBase"]
[SourceQuality "1"]
[TimeControl "40/5400+30:1800+30"]

1. d4 {[%emt 0:00:00]} d5 {[%emt 0:00:00]} 2. c4 {[%emt 0:00:00]} c6 {[%emt 0:00:00]} 3. Nf3 {[%emt 0:00:00]} Nf6 {[%emt 0:00:00]} 4. Nc3 {[%emt 0:00:00]} e6 {[%emt 0:00:00]} 5. e3 {[%emt 0:00:00]} Nbd7 {[%emt 0:00:00]} 6. Qc2 {[%emt 0:00:08]} Bd6 {[%emt 0:00:00]} 7. Bd3 {[%emt 0:00:11]} dxc4 {[%emt 0:00:06]} 8. Bxc4 {[%emt 0:00:06]} b5 {[%emt 0:00:17]} 9. Bd3 {[%emt 0:00:26]} Bb7 {[%emt 0:00:19]} 10. O-O {[%emt 0:02:53]} a6 {[%emt 0:03:36]} 11. a4 {[%emt 0:20:19]} Rc8 {[%emt 0:03:26]} 12. Rd1 {[%emt 0:13:38]} Qe7 {[%emt 0:01:57]} 13. e4 {[%emt 0:09:27]} e5 {[%emt 0:00:40]} 14. Bg5 {[%emt 0:15:13]} h6 {[%emt 0:11:46]} 15. Bh4 {[%emt 0:02:57]} O-O {[%emt 0:04:24]} 16. Ne2 {[%emt 0:04:41]} Rfe8 {[%emt 0:08:06]} 17. Rac1 {[%emt 0:13:32]} c5 {[%emt 0:04:51]} 18. dxe5 {[%emt 0:02:34]} Bxe5 {[%emt 0:00:19]} 19. Nxe5 {[%emt 0:07:05]} Nxe5 {[%emt 0:00:11]} 20. Ng3 {[%emt 0:00:32]} Nxd3 {[%emt 0:01:45]} 21. Qxd3 {[%emt 0:00:21]} c4 {[%emt 0:05:17]} 22. Qd4 {[%emt 0:01:50]} Rc6 {[%emt 0:02:38]} 23. Bxf6 {[%emt 0:01:40]} Rxf6 {[%emt 0:01:23]} 24. f3 {[%emt 0:00:29]} g6 {[%emt 0:01:28]} 25. Nf1 {[%emt 0:00:40]} Re6 {[%emt 0:02:17]} 26. Ne3 {[%emt 0:01:20]} Qg5 {[%emt 0:01:08]} 27. Nd5 {[%emt 0:01:18]} Bxd5 {[%emt 0:00:30]} 28. Qxd5 {[%emt 0:00:04]} Qe3+ {[%emt 0:02:09]} 29. Kf1 {[%emt 0:00:36]} Qf4 {[%emt 0:04:24]} 30. axb5 {[%emt 0:00:20]} axb5 {[%emt 0:00:55]} 31. Qxb5 {[%emt 0:00:36]} Rxe4 {[%emt 0:00:15]} 32. Rxc4 {[%emt 0:00:46]} Rxc4 {[%emt 0:08:17]} 33. Qxe8+ {[%emt 0:00:02]} Kg7 {[%emt 0:00:23]} 34. Qe2 {[%emt 0:00:47]} Qc7 {[%emt 0:01:50]} 35. Qd3 {[%emt 0:01:24]} Qc5 {[%emt 0:02:14]} 36. b3 {[%emt 0:00:47]} Rc3 {[%emt 0:00:29]} 37. Qd4+ {[%emt 0:00:11]} Qxd4 {[%emt 0:00:08]} 1/2-1/2

[Event "SWE-ch Masters 2019"]
[Site "Eskilstuna"]
[Date "2019.07.06"]
[Round "1.3"]
[White "Wahlund, Max"]
[Black "Engstrom, Kaj"]
[Result "1/2-1/2"]
[ECO "E08"]
[WhiteElo "2100"]
[BlackElo "2234"]
[Annotator "NA"]
[PlyCount "94"]
[EventDate "2019.07.06"]
[EventType "tourn"]
[EventCountry "SWE"]
[SourceTitle "playchess.com"]
[Source "ChessBase"]
[SourceQuality "1"]
[TimeControl "40/5400+30:1800+30"]

1. d4 {[%emt 0:00:00]} d5 {[%emt 0:00:00]} 2. c4 {[%emt 0:00:00]} e6 {[%emt 0:00:00]} 3. Nf3 {[%emt 0:00:00]} Nf6 {[%emt 0:00:03]} 4. g3 {[%emt 0:00:00]} Be7 {[%emt 0:01:04]} 5. Bg2 {[%emt 0:00:00]} O-O {[%emt 0:00:08]} 6. O-O {[%emt 0:00:00]} Nbd7 {[%emt 0:01:01]} 7. Qc2 {[%emt 0:04:47]} Ne4 {[%emt 0:06:48]} 8. cxd5 {[%emt 0:01:35]} exd5 {[%emt 0:00:08]} 9. Nc3 {[%emt 0:00:20]} Nxc3 {[%emt 0:02:01]} 10. bxc3 {[%emt 0:00:34]} Nb6 {[%emt 0:00:48]} 11. e4 {[%emt 0:03:46]} c6 {[%emt 0:03:13]} 12. h4 {[%emt 0:05:14]} Be6 {[%emt 0:05:32]} 13. Ng5 {[%emt 0:02:59]} Bxg5 {[%emt 0:04:30]} 14. hxg5 {[%emt 0:01:27]} Qd7 {[%emt 0:02:25]} 15. f4 {[%emt 0:02:26]} dxe4 {[%emt 0:03:54]} 16. Bxe4 {[%emt 0:00:35]} f5 {[%emt 0:00:40]} 17. gxf6 {[%emt 0:02:08]} gxf6 {[%emt 0:00:11]} 18. f5 {[%emt 0:09:07]} Bd5 {[%emt 0:01:05]} 19. Bh6 {[%emt 0:07:05]} Rfe8 {[%emt 0:08:16]} 20. Rae1 {[%emt 0:00:44]} Re7 {[%emt 0:02:52]} 21. Bxd5+ {[%emt 0:09:41]} Nxd5 {[%emt 0:08:13]} 22. c4 {[%emt 0:02:53]} Nb4 {[%emt 0:03:19]} 23. Qc3 {[%emt 0:04:55]} c5 {[%emt 0:07:41]} 24. d5 {[%emt 0:07:39]} Rf7 {[%emt 0:11:57]} 25. Re6 {[%emt 0:03:29]} Nxa2 {[%emt 0:05:33]} 26. Qe3 {[%emt 0:12:31]} Nb4 {[%emt 0:01:40]} 27. Re1 {[%emt 0:05:21]} Nc2 {[%emt 0:00:17]} 28. Re8+ {[%emt 0:00:06]} Rf8 {[%emt 0:00:04]} 29. Rxf8+ {[%emt 0:01:31]} Rxf8 {[%emt 0:00:06]} 30. Qe7 {[%emt 0:03:40]} Qxe7 {[%emt 0:00:31]} 31. Rxe7 {[%emt 0:00:02]} Rb8 {[%emt 0:02:28]} 32. Rg7+ {[%emt 0:00:19]} Kh8 {[%emt 0:00:04]} 33. Rc7 {[%emt 0:02:35]} Rg8 {[%emt 0:03:42]} 34. d6 {[%emt 0:04:35]} Nd4 {[%emt 0:00:10]} 35. Rxc5 {[%emt 0:00:57]} Nc6 {[%emt 0:00:25]} 36. Kg2 {[%emt 0:00:38]} Rd8 {[%emt 0:00:19]} 37. Rb5 {[%emt 0:01:01]} Rd7 {[%emt 0:00:15]} 38. Rb1 {[%emt 0:00:29]} Kg8 {[%emt 0:00:11]} 39. c5 {[%emt 0:00:43]} Kf7 {[%emt 0:00:20]} 40. g4 {[%emt 0:00:39]} Ne5 {[%emt 0:06:09]} 41. Kg3 {[%emt 0:30:46]} b6 {[%emt 0:32:33]} 42. cxb6 {[%emt 0:00:00]} axb6 {[%emt 0:00:00]} 43. Rxb6 {[%emt 0:00:00]} Nc4 {[%emt 0:00:00]} 44. Rc6 {[%emt 0:00:00]} Nxd6 {[%emt 0:00:00]} 45. Bf4 {[%emt 0:00:00]} Ne4+ {[%emt 0:00:00]} 46. Kf3 {[%emt 0:00:00]} Ng5+ {[%emt 0:00:00]} 47. Bxg5 {[%emt 0:00:00]} fxg5 {[%emt 0:00:00]} 1/2-1/2

[Event "SWE-ch Masters 2019"]
[Site "Eskilstuna"]
[Date "2019.07.06"]
[Round "1.4"]
[White "Tiger-Norqvist, Axel"]
[Black "Emmoth, Alfons"]
[Result "1/2-1/2"]
[ECO "C02"]
[WhiteElo "2222"]
[BlackElo "2075"]
[Annotator "NA"]
[PlyCount "85"]
[EventDate "2019.07.06"]
[EventType "tourn"]
[EventCountry "SWE"]
[SourceTitle "playchess.com"]
[Source "ChessBase"]
[SourceQuality "1"]
[TimeControl "40/5400+30:1800+30"]

1. e4 {[%emt 0:00:00]} e6 {[%emt 0:00:00]} 2. d4 {[%emt 0:00:00]} d5 {[%emt 0:00:00]} 3. e5 {[%emt 0:00:00]} c5 {[%emt 0:00:00]} 4. c3 {[%emt 0:00:00]} Qb6 {[%emt 0:00:00]} 5. Nf3 {[%emt 0:00:07]} Nc6 {[%emt 0:00:03]} 6. a3 {[%emt 0:00:22]} c4 {[%emt 0:00:11]} 7. Be2 {[%emt 0:00:30]} Bd7 {[%emt 0:00:44]} 8. O-O {[%emt 0:00:26]} Nge7 {[%emt 0:01:55]} 9. Nbd2 {[%emt 0:00:39]} Na5 {[%emt 0:00:18]} 10. Re1 {[%emt 0:01:20]} h6 {[%emt 0:03:56]} 11. h4 {[%emt 0:04:26]} O-O-O {[%emt 0:05:34]} 12. Rb1 {[%emt 0:07:21]} Kb8 {[%emt 0:07:06]} 13. Nf1 {[%emt 0:06:04]} Nb3 {[%emt 0:05:07]} 14. Bf4 {[%emt 0:01:36]} Ng6 {[%emt 0:06:43]} 15. Bg3 {[%emt 0:02:09]} Be7 {[%emt 0:04:55]} 16. N1d2 {[%emt 0:02:01]} Ba4 {[%emt 0:05:05]} 17. Qc2 {[%emt 0:15:51]} Rdg8 {[%emt 0:10:53]} 18. h5 {[%emt 0:06:39]} Nf8 {[%emt 0:01:48]} 19. Nxb3 {[%emt 0:00:26]} Bxb3 {[%emt 0:00:56]} 20. Qc1 {[%emt 0:00:55]} Nd7 {[%emt 0:15:32]} 21. Nd2 {[%emt 0:02:33]} Ba4 {[%emt 0:01:56]} 22. Bd1 {[%emt 0:04:05]} Qc6 {[%emt 0:03:37]} 23. Re3 {[%emt 0:03:29]} Ka8 {[%emt 0:07:01]} 24. Bc2 {[%emt 0:08:10]} g5 {[%emt 0:05:10]} 25. hxg6 {[%emt 0:06:48]} fxg6 {[%emt 0:00:58]} 26. Rf3 {[%emt 0:00:39]} Nb6 {[%emt 0:01:07]} 27. Re3 {[%emt 0:07:21]} Bxc2 {[%emt 0:02:54]} 28. Qxc2 {[%emt 0:00:05]} Qa4 {[%emt 0:00:14]} 29. Rc1 {[%emt 0:05:30]} Qxc2 {[%emt 0:01:41]} 30. Rxc2 {[%emt 0:01:44]} Rf8 {[%emt 0:00:50]} 31. Rf3 {[%emt 0:01:28]} g5 {[%emt 0:02:22]} 32. Rxf8+ {[%emt 0:00:51]} Rxf8 {[%emt 0:00:05]} 33. f3 {[%emt 0:00:06]} Kb8 {[%emt 0:01:11]} 34. Bh2 {[%emt 0:01:08]} h5 {[%emt 0:01:25]} 35. g4 {[%emt 0:00:24]} hxg4 {[%emt 0:01:58]} 36. fxg4 {[%emt 0:00:05]} Kc7 {[%emt 0:00:12]} 37. Kg2 {[%emt 0:00:26]} Kd7 {[%emt 0:00:35]} 38. Bg1 {[%emt 0:01:41]} Ke8 {[%emt 0:00:57]} 39. Be3 {[%emt 0:00:49]} Kf7 {[%emt 0:00:30]} 40. Nf3 {[%emt 0:01:58]} Kg6 {[%emt 0:00:25]} 41. Bc1 {[%emt 0:31:02]} Rh8 {[%emt 0:33:14]} 42. Rf2 {[%emt 0:01:19]} a5 {[%emt 0:00:00]} 43. Rc2 {[%emt 0:00:00]} 1/2-1/2

[Event "SWE-ch Masters 2019"]
[Site "Eskilstuna"]
[Date "2019.07.06"]
[Round "1.5"]
[White "Hellstrom, Magnus"]
[Black "Eriksson, Jorgen"]
[Result "1/2-1/2"]
[ECO "C18"]
[WhiteElo "2061"]
[BlackElo "2211"]
[Annotator "NA"]
[PlyCount "59"]
[EventDate "2019.07.06"]
[EventType "tourn"]
[EventCountry "SWE"]
[SourceTitle "playchess.com"]
[Source "ChessBase"]
[SourceQuality "1"]
[TimeControl "40/5400+30:1800+30"]

1. e4 {[%emt 0:00:00]} e6 {[%emt 0:00:00]} 2. d4 {[%emt 0:00:00]} d5 {[%emt 0:00:05]} 3. Nc3 {[%emt 0:00:14]} Bb4 {[%emt 0:00:19]} 4. e5 {[%emt 0:01:26]} c5 {[%emt 0:00:25]} 5. a3 {[%emt 0:00:54]} Bxc3+ {[%emt 0:00:33]} 6. bxc3 {[%emt 0:00:11]} Qa5 {[%emt 0:00:26]} 7. Bd2 {[%emt 0:01:29]} Qa4 {[%emt 0:00:16]} 8. Qg4 {[%emt 0:03:23]} g6 {[%emt 0:00:10]} 9. c4 {[%emt 0:01:57]} Nc6 {[%emt 0:05:15]} 10. dxc5 {[%emt 0:05:58]} Qxc2 {[%emt 0:08:14]} 11. Nf3 {[%emt 0:00:56]} Qb2 {[%emt 0:18:21]} 12. Rc1 {[%emt 0:17:04]} Nxe5 {[%emt 0:02:52]} 13. Qf4 {[%emt 0:03:03]} Nxf3+ {[%emt 0:00:47]} 14. Qxf3 {[%emt 0:00:32]} Ne7 {[%emt 0:12:24]} 15. Rd1 {[%emt 0:12:13]} Qe5+ {[%emt 0:06:18]} 16. Be2 {[%emt 0:01:45]} d4 {[%emt 0:05:01]} 17. O-O {[%emt 0:01:35]} Bd7 {[%emt 0:03:35]} 18. Bf4 {[%emt 0:05:23]} Qxc5 {[%emt 0:00:41]} 19. Qxb7 {[%emt 0:01:51]} Bc6 {[%emt 0:05:17]} 20. Qc7 {[%emt 0:03:40]} Rc8 {[%emt 0:07:17]} 21. Qe5 {[%emt 0:00:27]} Qxe5 {[%emt 0:00:10]} 22. Bxe5 {[%emt 0:00:06]} O-O {[%emt 0:01:24]} 23. Bxd4 {[%emt 0:04:01]} Rc7 {[%emt 0:00:51]} 24. Be5 {[%emt 0:01:49]} Rb7 {[%emt 0:00:41]} 25. Bf6 {[%emt 0:04:36]} Re8 {[%emt 0:00:42]} 26. Rd6 {[%emt 0:00:27]} Rc7 {[%emt 0:00:57]} 27. Rfd1 {[%emt 0:02:20]} Kf8 {[%emt 0:01:27]} 28. g4 {[%emt 0:03:32]} Ng8 {[%emt 0:03:00]} 29. Bd8 {[%emt 0:04:23]} Rc8 {[%emt 0:00:29]} 30. f3 {[%emt 0:06:27]} 1/2-1/2

[Event "SWE-ch Masters 2019"]
[Site "Eskilstuna"]
[Date "2019.07.06"]
[Round "1.6"]
[White "Olsson, Simon"]
[Black "Cramling Bellon, Anna"]
[Result "1/2-1/2"]
[ECO "E43"]
[WhiteElo "2176"]
[BlackElo "2030"]
[Annotator "NA"]
[PlyCount "59"]
[EventDate "2019.07.06"]
[EventType "tourn"]
[EventCountry "SWE"]
[SourceTitle "playchess.com"]
[Source "ChessBase"]
[SourceQuality "1"]
[TimeControl "40/5400+30:1800+30"]

1. d4 {[%emt 0:00:00]} Nf6 {[%emt 0:00:00]} 2. c4 {[%emt 0:00:04]} e6 {[%emt 0:00:00]} 3. Nc3 {[%emt 0:00:09]} Bb4 {[%emt 0:00:00]} 4. a3 {[%emt 0:00:18]} Bxc3+ {[%emt 0:06:10]} 5. bxc3 {[%emt 0:00:13]} b6 {[%emt 0:03:09]} 6. e3 {[%emt 0:03:30]} Nc6 {[%emt 0:04:12]} 7. Bd3 {[%emt 0:02:54]} O-O {[%emt 0:17:06]} 8. e4 {[%emt 0:02:15]} d6 {[%emt 0:00:16]} 9. Bg5 {[%emt 0:01:26]} h6 {[%emt 0:08:08]} 10. Be3 {[%emt 0:07:28]} e5 {[%emt 0:00:35]} 11. f3 {[%emt 0:01:39]} Qe7 {[%emt 0:02:49]} 12. Ne2 {[%emt 0:03:27]} Na5 {[%emt 0:06:12]} 13. Ng3 {[%emt 0:04:28]} d5 {[%emt 0:21:07]} 14. dxe5 {[%emt 0:01:57]} Qxe5 {[%emt 0:00:07]} 15. Bd4 {[%emt 0:00:18]} Qe7 {[%emt 0:04:00]} 16. cxd5 {[%emt 0:04:50]} Nxd5 {[%emt 0:00:07]} 17. O-O {[%emt 0:01:23]} Nf4 {[%emt 0:00:43]} 18. Be3 {[%emt 0:04:03]} Nxd3 {[%emt 0:06:23]} 19. Qxd3 {[%emt 0:00:02]} Be6 {[%emt 0:02:18]} 20. Rfe1 {[%emt 0:04:36]} Rfd8 {[%emt 0:01:52]} 21. Qc2 {[%emt 0:01:09]} Nc4 {[%emt 0:03:05]} 22. f4 {[%emt 0:03:51]} Nxe3 {[%emt 0:08:30]} 23. Rxe3 {[%emt 0:00:09]} Qc5 {[%emt 0:00:09]} 24. Qf2 {[%emt 0:00:46]} Rd7 {[%emt 0:01:07]} 25. e5 {[%emt 0:02:35]} Rad8 {[%emt 0:00:47]} 26. Ne4 {[%emt 0:11:50]} Rd1+ {[%emt 0:00:40]} 27. Re1 {[%emt 0:00:12]} Qxf2+ {[%emt 0:00:40]} 28. Kxf2 {[%emt 0:00:25]} R1d3 {[%emt 0:01:15]} 29. Rac1 {[%emt 0:03:49]} Bd5 {[%emt 0:01:08]} 30. Rc2 {[%emt 0:03:46]} 1/2-1/2

[Event "SWE-ch Masters 2019"]
[Site "Eskilstuna"]
[Date "2019.07.06"]
[Round "1.7"]
[White "Sivhed, Johan"]
[Black "Lind, Jan-Olov"]
[Result "0-1"]
[ECO "B70"]
[WhiteElo "2023"]
[BlackElo "2155"]
[Annotator "NA"]
[PlyCount "76"]
[EventDate "2019.07.06"]
[EventType "tourn"]
[EventCountry "SWE"]
[SourceTitle "playchess.com"]
[Source "ChessBase"]
[SourceQuality "1"]
[TimeControl "40/5400+30:1800+30"]

1. e4 {[%emt 0:00:00]} c5 {[%emt 0:00:00]} 2. Nf3 {[%emt 0:00:00]} g6 {[%emt 0:00:00]} 3. d4 {[%emt 0:00:05]} cxd4 {[%emt 0:00:00]} 4. Nxd4 {[%emt 0:00:05]} Bg7 {[%emt 0:00:00]} 5. Nc3 {[%emt 0:00:28]} Nc6 {[%emt 0:00:16]} 6. Nb3 {[%emt 0:01:19]} Nf6 {[%emt 0:01:06]} 7. Be2 {[%emt 0:00:17]} O-O {[%emt 0:00:24]} 8. O-O {[%emt 0:00:07]} d6 {[%emt 0:00:47]} 9. Re1 {[%emt 0:00:10]} a6 {[%emt 0:14:19]} 10. a4 {[%emt 0:07:06]} b6 {[%emt 0:00:41]} 11. Bf1 {[%emt 0:04:32]} Bb7 {[%emt 0:01:39]} 12. Nd5 {[%emt 0:01:39]} Nd7 {[%emt 0:01:24]} 13. c3 {[%emt 0:02:06]} e6 {[%emt 0:07:24]} 14. Ne3 {[%emt 0:06:51]} Nf6 {[%emt 0:02:32]} 15. f3 {[%emt 0:19:32]} Qc7 {[%emt 0:01:41]} 16. c4 {[%emt 0:07:43]} Rad8 {[%emt 0:05:07]} 17. Qd2 {[%emt 0:15:08]} d5 {[%emt 0:10:55]} 18. cxd5 {[%emt 0:03:37]} exd5 {[%emt 0:00:11]} 19. exd5 {[%emt 0:05:21]} Ne5 {[%emt 0:09:09]} 20. Qb4 {[%emt 0:03:11]} a5 {[%emt 0:05:32]} 21. Qh4 {[%emt 0:06:16]} Nxd5 {[%emt 0:02:19]} 22. Nxd5 {[%emt 0:00:41]} Rxd5 {[%emt 0:04:22]} 23. Nd2 {[%emt 0:06:02]} Nd3 {[%emt 0:06:42]} 24. Bxd3 {[%emt 0:00:44]} Rxd3 {[%emt 0:00:48]} 25. Ne4 {[%emt 0:01:49]} Bxe4 {[%emt 0:02:36]} 26. Qxe4 {[%emt 0:01:32]} Rd4 {[%emt 0:00:47]} 27. Qe2 {[%emt 0:02:12]} Qc6 {[%emt 0:03:54]} 28. Be3 {[%emt 0:03:04]} Rxa4 {[%emt 0:04:56]} 29. Rxa4 {[%emt 0:00:15]} Qxa4 {[%emt 0:00:07]} 30. Bxb6 {[%emt 0:00:25]} Qb4 {[%emt 0:00:47]} 31. Qf2 {[%emt 0:00:58]} Rc8 {[%emt 0:02:00]} 32. h3 {[%emt 0:00:31]} Bxb2 {[%emt 0:07:15]} 33. Rb1 {[%emt 0:01:06]} Rc1+ {[%emt 0:01:28]} 34. Rxc1 {[%emt 0:00:01]} Bxc1 {[%emt 0:00:08]} 35. Bd4 {[%emt 0:00:35]} a4 {[%emt 0:02:01]} 36. Kh2 {[%emt 0:00:24]} a3 {[%emt 0:00:52]} 37. Qh4 {[%emt 0:00:44]} Qd6+ {[%emt 0:01:18]} 38. g3 {[%emt 0:00:07]} Bb2 {[%emt 0:00:43]} 0-1

[Event "SWE-ch Masters 2019"]
[Site "Eskilstuna"]
[Date "2019.07.06"]
[Round "1.8"]
[White "Olsson, Svante"]
[Black "Carlsson, Andreas"]
[Result "1-0"]
[ECO "A37"]
[WhiteElo "2155"]
[BlackElo "2019"]
[Annotator "NA"]
[PlyCount "51"]
[EventDate "2019.07.06"]
[EventType "tourn"]
[EventCountry "SWE"]
[SourceTitle "playchess.com"]
[Source "ChessBase"]
[SourceQuality "1"]
[TimeControl "40/5400+30:1800+30"]

1. c4 {[%emt 0:00:04]} c5 {[%emt 0:00:20]} 2. Nc3 {[%emt 0:00:33]} Nc6 {[%emt 0:00:00]} 3. g3 {[%emt 0:00:08]} g6 {[%emt 0:00:00]} 4. Bg2 {[%emt 0:00:10]} Bg7 {[%emt 0:00:48]} 5. Nf3 {[%emt 0:01:29]} d6 {[%emt 0:00:00]} 6. O-O {[%emt 0:00:10]} Qd7 {[%emt 0:00:00]} 7. d3 {[%emt 0:00:25]} Bxc3 {[%emt 0:01:15]} 8. bxc3 {[%emt 0:00:13]} b6 {[%emt 0:00:14]} 9. Ne1 {[%emt 0:01:14]} f5 {[%emt 0:03:23]} 10. Nc2 {[%emt 0:01:37]} Bb7 {[%emt 0:01:11]} 11. Rb1 {[%emt 0:01:46]} Nf6 {[%emt 0:09:24]} 12. Ne3 {[%emt 0:02:04]} e6 {[%emt 0:06:58]} 13. d4 {[%emt 0:01:56]} O-O-O {[%emt 0:00:28]} 14. d5 {[%emt 0:00:30]} Na5 {[%emt 0:01:30]} 15. dxe6 {[%emt 0:06:58]} Qxe6 {[%emt 0:00:20]} 16. Bxb7+ {[%emt 0:00:23]} Kxb7 {[%emt 0:02:14]} 17. Nd5 {[%emt 0:01:54]} h6 {[%emt 0:02:26]} 18. f3 {[%emt 0:08:23]} Rd7 {[%emt 0:05:19]} 19. Rf2 {[%emt 0:05:15]} Nh5 {[%emt 0:14:36]} 20. Qa4 {[%emt 0:02:49]} Nc6 {[%emt 0:02:06]} 21. Qb5 {[%emt 0:00:11]} Ne7 {[%emt 0:05:33]} 22. a4 {[%emt 0:01:12]} Ka8 {[%emt 0:08:12]} 23. a5 {[%emt 0:03:24]} bxa5 {[%emt 0:02:23]} 24. e4 {[%emt 0:05:29]} Rc8 {[%emt 0:09:26]} 25. Rfb2 {[%emt 0:01:40]} Nc6 {[%emt 0:00:52]} 26. Qxc6+ {[%emt 0:00:13]} 1-0

[Event "SWE-ch Masters 2019"]
[Site "Eskilstuna"]
[Date "2019.07.06"]
[Round "1.9"]
[White "Adellian, Yashar"]
[Black "Jogstad, Daniel"]
[Result "1/2-1/2"]
[ECO "B22"]
[WhiteElo "1995"]
[BlackElo "2154"]
[Annotator "NA"]
[PlyCount "42"]
[EventDate "2019.07.06"]
[EventType "tourn"]
[EventCountry "SWE"]
[SourceTitle "playchess.com"]
[Source "ChessBase"]
[SourceQuality "1"]
[TimeControl "40/5400+30:1800+30"]

1. e4 {[%emt 0:00:00]} c5 {[%emt 0:00:00]} 2. c3 {[%emt 0:00:12]} Nf6 {[%emt 0:00:14]} 3. e5 {[%emt 0:00:18]} Nd5 {[%emt 0:00:07]} 4. d4 {[%emt 0:00:30]} cxd4 {[%emt 0:00:30]} 5. Qxd4 {[%emt 0:00:09]} e6 {[%emt 0:01:09]} 6. Bc4 {[%emt 0:00:15]} Nc6 {[%emt 0:02:12]} 7. Qe4 {[%emt 0:00:08]} f5 {[%emt 0:02:13]} 8. Qe2 {[%emt 0:01:08]} Nb6 {[%emt 0:08:31]} 9. Bb3 {[%emt 0:01:38]} Be7 {[%emt 0:02:56]} 10. Nf3 {[%emt 0:07:41]} O-O {[%emt 0:01:18]} 11. O-O {[%emt 0:12:50]} Na5 {[%emt 0:05:35]} 12. Bc2 {[%emt 0:02:06]} Qc7 {[%emt 0:13:19]} 13. Rd1 {[%emt 0:32:20]} a6 {[%emt 0:00:55]} 14. a3 {[%emt 0:09:53]} Nd5 {[%emt 0:03:05]} 15. g4 {[%emt 0:01:40]} fxg4 {[%emt 0:02:36]} 16. Qe4 {[%emt 0:00:35]} Rxf3 {[%emt 0:08:55]} 17. Qxh7+ {[%emt 0:01:00]} Kf8 {[%emt 0:00:06]} 18. Qh8+ {[%emt 0:15:55]} Kf7 {[%emt 0:00:08]} 19. Qh5+ {[%emt 0:01:53]} Kf8 {[%emt 0:00:43]} 20. Qh8+ {[%emt 0:06:32]} Kf7 {[%emt 0:00:18]} 21. Qh5+ {[%emt 0:00:07]} Kf8 {[%emt 0:01:19]} 1/2-1/2